Workbook

Sheet CDKOHSL (hidden)

Sheet 工程量清单
A1: 公路养护高技能人才培训基地项目招标工程量清单
G2: 货币单位：人民币元
A3: 序号 | B3: 项目名称 | C3: 单位 | D3: 工程量 | E3: 最高限价单价 (不含税) | F3: 投标单价 （不含税） | G3: 投标报价 (不含税)
A4: 1 | B4: 平房拆除 | C4: m2 | D4: =90+100 -> 190 | E4: 12.00 | G4: =IF(F4>E4,"报价无效",D4*F4) -> 0
A5: 2 | B5: 砌筑物拆除 | C5: m3 | D5: 1600 | E5: 36.50 | G5: =IF(F5>E5,"报价无效",D5*F5) -> 0
A6: 3 | B6: 混凝土构件拆除 | C6: m2 | D6: 830 | E6: 10.50 | G6: =IF(F6>E6,"报价无效",D6*F6) -> 0
A7: 4 | B7: 砌筑物拆除 | C7: m2 | D7: 6.5 | E7: 35.00 | G7: =IF(F7>E7,"报价无效",D7*F7) -> 0
A8: 5 | B8: 余方弃置 | C8: m3 | D8: =1950.5+453.84+17.86+1226.93+330.77+121.18+59.9+34.5+10.62 -> 4206.1 | E8: 36.00 | G8: =IF(F8>E8,"报价无效",D8*F8) -> 0
A9: 6 | B9: 回填方 | C9: m3 | D9: =1500+8.23 -> 1508.23 | E9: 43.00 | G9: =IF(F9>E9,"报价无效",D9*F9) -> 0
A10: 7 | B10: 大型机械设备进出场及安 拆（履带式挖掘机） | C10: 台次 | D10: 1 | E10: 4300.00 | G10: =IF(F10>E10,"报价无效",D10*F10) -> 0
A11: 8 | B11: 铣刨路面 | C11: m2 | D11: 782.34 | E11: 7.00 | G11: =IF(F11>E11,"报价无效",D11*F11) -> 0
A12: 9 | B12: 沥青混凝土 | C12: m2 | D12: =782.34+945.51+945.51+187.69+187.69 -> 3048.74 | E12: 41.00 | G12: =IF(F12>E12,"报价无效",D12*F12) -> 0
A13: 10 | B13: 粘层 | C13: m2 | D13: =782.34+945.51+187.69 -> 1915.54 | E13: 3.00 | G13: =IF(F13>E13,"报价无效",D13*F13) -> 0
A14: 11 | B14: 挖一般土方 | C14: m3 | D14: =453.84+17.86+1226.93+330.77+121.18+59.9 -> 2210.48 | E14: 6.00 | G14: =IF(F14>E14,"报价无效",D14*F14) -> 0
A15: 12 | B15: 路床(槽）整形 | C15: m2 | D15: =945.51+2044.89+826.93+187.69+1041.65 -> 5046.67 | E15: 3.00 | G15: =IF(F15>E15,"报价无效",D15*F15) -> 0
A16: 13 | B16: 砂砾石 | C16: m2 | D16: =945.51+2044.89+826.93+187.69+356.4+1041.65+176.17 -> 5579.24 | E16: 31.00 | G16: =IF(F16>E16,"报价无效",D16*F16) -> 0
A17: 14 | B17: 水泥稳定碎(砾)石 | C17: m2 | D17: =945.51+2044.89+187.69 -> 3178.09 | E17: 36.00 | G17: =IF(F17>E17,"报价无效",D17*F17) -> 0
A18: 15 | B18: 透层 | C18: m2 | D18: =945.51+187.69 -> 1133.2 | E18: 4.00 | G18: =IF(F18>E18,"报价无效",D18*F18) -> 0
A19: 16 | B19: 防水层 | C19: m2 | D19: =945.51+187.69 -> 1133.2 | E19: 49.00 | G19: =IF(F19>E19,"报价无效",D19*F19) -> 0
A20: 17 | B20: 安砌侧(平、缘)石 | C20: m | D20: =446.48+86.34+286+173+82 -> 1073.82 | E20: 36.00 | G20: =IF(F20>E20,"报价无效",D20*F20) -> 0
A21: 18 | B21: 垫层 | C21: m3 | D21: =4.24+1.64+15.1+0.78+0.82+35.64+2.72+2.94 -> 63.88 | E21: 330.00 | G21: =IF(F21>E21,"报价无效",D21*F21) -> 0
A22: 19 | B22: 标线 | C22: m2 | D22: =55 -> 55 | E22: 46.00 | G22: =IF(F22>E22,"报价无效",D22*F22) -> 0
A23: 20 | B23: 大型机械设备进 出场及安拆（压路机） | C23: 台次 | D23: 1 | E23: 3000.00 | G23: =IF(F23>E23,"报价无效",D23*F23) -> 0
A24: 21 | B24: 大型机械设备进 出场及安拆（沥青混凝土摊铺机） | C24: 台次 | D24: 1 | E24: 4900.00 | G24: =IF(F24>E24,"报价无效",D24*F24) -> 0
A25: 22 | B25: 水泥混凝土 | C25: m2 | D25: =2044.89+826.93+1041.65+408 -> 4321.47 | E25: 88.00 | G25: =IF(F25>E25,"报价无效",D25*F25) -> 0
A26: 23 | B26: 人行道整形碾压 | C26: m2 | D26: =356.4+176.17 -> 532.57 | E26: 3.50 | G26: =IF(F26>E26,"报价无效",D26*F26) -> 0
A27: 24 | B27: 人行道块料铺设 | C27: m2 | D27: =356.4+151 -> 507.4 | E27: 48.50 | G27: =IF(F27>E27,"报价无效",D27*F27) -> 0
A28: 25 | B28: 护栏 | C28: m | D28: 80 | E28: 101.00 | G28: =IF(F28>E28,"报价无效",D28*F28) -> 0
A29: 26 | B29: 平整场地 | C29: m2 | D29: 317.77 | E29: 3.00 | G29: =IF(F29>E29,"报价无效",D29*F29) -> 0
A30: 27 | B30: 临时围挡 | C30: m | D30: 53.5 | E30: 60.00 | G30: =IF(F30>E30,"报价无效",D30*F30) -> 0
A31: 28 | B31: 整理绿化用地 | C31: m2 | D31: 1770.39 | E31: 3.00 | G31: =IF(F31>E31,"报价无效",D31*F31) -> 0
A32: 29 | B32: 种植土回（换）填 | C32: m3 | D32: =531.12+34.5 -> 565.62 | E32: 45.00 | G32: =IF(F32>E32,"报价无效",D32*F32) -> 0
A33: 30 | B33: 铺种草皮 | C33: m2 | D33: =1770.39+135.6+250 -> 2155.99 | E33: 39.00 | G33: =IF(F33>E33,"报价无效",D33*F33) -> 0
A34: 31 | B34: 栽植乔木 | C34: 株 | D34: 12 | E34: 101.00 | G34: =IF(F34>E34,"报价无效",D34*F34) -> 0
A35: 32 | B35: 栽植灌木 | C35: 株 | D35: 42 | E35: 244.00 | G35: =IF(F35>E35,"报价无效",D35*F35) -> 0
A36: 33 | B36: 拆除路面 | C36: m2 | D36: 115 | E36: 10.00 | G36: =IF(F36>E36,"报价无效",D36*F36) -> 0
A37: 34 | B37: 栽植灌木 | C37: 株 | D37: 8 | E37: 243.00 | G37: =IF(F37>E37,"报价无效",D37*F37) -> 0
A38: 35 | B38: 挖沟槽土方 | C38: m3 | D38: 18.85 | E38: 7.00 | G38: =IF(F38>E38,"报价无效",D38*F38) -> 0
A39: 36 | B39: 基础垫层模板 | C39: m2 | D39: 16.8 | E39: 29.00 | G39: =IF(F39>E39,"报价无效",D39*F39) -> 0
A40: 37 | B40: 砖基础 | C40: m3 | D40: 7.68 | E40: 402.00 | G40: =IF(F40>E40,"报价无效",D40*F40) -> 0
A41: 38 | B41: 墙面勾缝 | C41: m2 | D41: 47.04 | E41: 10.00 | G41: =IF(F41>E41,"报价无效",D41*F41) -> 0
A42: 39 | B42: 木栅栏 | C42: m | D42: 84 | E42: 38.50 | G42: =IF(F42>E42,"报价无效",D42*F42) -> 0
A43: 40 | B43: 金属面油漆 | C43: m2 | D43: 680 | E43: 17.00 | G43: =IF(F43>E43,"报价无效",D43*F43) -> 0
A44: 41 | B44: 废旧罐体转移 | C44: 项 | D44: 1 | E44: 41000.00 | G44: =IF(F44>E44,"报价无效",D44*F44) -> 0
A45: 合计 | B45: 总金额 | E45: 0 | G45: =SUM(G4:G44) -> 0
A46: 备注：包含施工、材料、机械、安全布控及施工过程中产生的一切费用（最终结算以实际发生为准）
